[Event "5th Vera Menchik Memorial 2022"]
[Site "Prag"]
[Date "2022.06.05"]
[Round "5.10"]
[White "Jirovsky, Pavel"]
[Black "Filindash, Nikita"]
[Result "1-0"]
[ECO "D34"]
[WhiteElo "2296"]
[BlackElo "1404"]
[Annotator "TA"]
[PlyCount "51"]
[EventDate "2022.06.05"]
[EventType "tourn"]
[EventCountry "CZE"]
[SourceTitle "playchess.com"]
[Source "ChessBase"]
[SourceQuality "1"]
[TimeControl "720+3"]

{[%evp 19,51,39,60,62,122,12,0,11,23,0,2,0,22,36,46,-23,-24,-22,-18,-32,64,64,64,64,70,64,66,45,79,47,67,4,1229,1189]} 1. d4 {[%emt 0:00:13]} d5 {[%emt 0:00:02]} 2. Nf3 {[%emt 0:00:02]} e6 {[%emt 0:00:01]} 3. g3 {[%emt 0:00:04]} c5 {[%emt 0:00:01]} 4. Bg2 {[%emt 0:00:01]} Nc6 {[%emt 0:00:01]} 5. O-O {[%emt 0:00:03]} Nf6 {[%emt 0:00:01]} 6. c4 {[%emt 0:00:02]} cxd4 {[%emt 0:01:01]} 7. Nxd4 {[%emt 0:00:04]} Be7 {[%emt 0:00:12]} 8. Nc3 {[%emt 0:00:25]} O-O {[%emt 0:00:15]} 9. cxd5 {[%emt 0:00:04]} exd5 {[%emt 0:00:03]} 10. Bf4 {[%emt 0:00:26]} Be6 {[%emt 0:01:23] is the legacy move (10...Qb6).} 11. Rc1 {[%emt 0:00:14] D34: Tarrasch Defence: 6 g3 Nf6 7 Bg2 Be7.} Rc8 {[%emt 0:00:36]} ({Black should play} 11... Qd7 $14) 12. Na4 {[%emt 0:01:04] White is more active.} (12. Nxe6 $16 fxe6 13. Bh3) 12... Nxd4 $11 {[%emt 0:00:21]} 13. Qxd4 {[%emt 0:00:04] The position is equal.} b6 {[%emt 0:00:40]} 14. Be5 {[%emt 0:00:55]} Qd7 {[%emt 0:00:19]} 15. Rfd1 {[%emt 0:00:30] [#]} (15. e3 {looks sharper.} Ng4 16. Bxg7 Rxc1 17. Rxc1 Rc8 18. Rxc8+ Qxc8 19. Nc3) 15... Rxc1 $146 {[%emt 0:01:00]} ({Predecessor:} 15... Rfd8 16. Bf3 Qb5 17. b3 Ne8 18. Rxc8 Rxc8 19. Nc3 Qa5 20. Nxd5 Bc5 {1-0 (28) Reschke,H (2037)-Pawlick,H (1943) Mecklenburg VP 2002}) 16. Rxc1 {[%emt 0:00:02]} Rc8 {[%emt 0:00:02]} 17. Rc3 {[%emt 0:02:03]} (17. Rxc8+ $14 Qxc8 18. Nc3) 17... Rxc3 {[%emt 0:02:51]} 18. Nxc3 {[%emt 0:00:43]} Bc5 {[%emt 0:01:30]} 19. Qf4 {[%emt 0:00:03]} Ng4 {[%emt 0:00:13]} (19... d4 $1 $15 20. Ne4 Nxe4 21. Qxe4 f6) 20. Bd4 $14 {[%emt 0:00:10]} Bxd4 {[%emt 0:00:18]} 21. Qxd4 {[%emt 0:00:03][%cal Rg2d5]} Nf6 {[%emt 0:00:02]} 22. e3 {[%emt 0:00:24]} Qc6 {[%emt 0:00:55]} 23. h3 {[%emt 0:00:55]} Kf8 {[%emt 0:00:02]} 24. Bf1 {[%emt 0:00:15]} Ne4 {[%emt 0:00:40]} 25. Qb4+ {[%emt 0:02:30]} (25. Nxe4 $1 $14 dxe4 26. Qd8+ Qe8 27. Qc7) 25... Ke8 $2 {[%emt 0:00:27][%mdl 8192] [#]} (25... Qc5 $11 26. Qa4 Nxc3 27. bxc3 Qc7) 26. Bb5 {[%emt 0:00:07] Weighted Error Value: White=0.37/Black=0.25 (precise)} 1-0

[Event "5th Vera Menchik Memorial 2022"]
[Site "Prag"]
[Date "2022.06.05"]
[Round "5.11"]
[White "Jedlicka, Ales"]
[Black "Sboev, Kirill"]
[Result "1-0"]
[ECO "D36"]
[WhiteElo "2207"]
[BlackElo "1229"]
[Annotator "TA"]
[PlyCount "59"]
[EventDate "2022.06.05"]
[EventType "tourn"]
[EventCountry "CZE"]
[SourceTitle "playchess.com"]
[Source "ChessBase"]
[SourceQuality "1"]
[TimeControl "720+3"]

{[%evp 18,59,34,11,14,0,43,36,36,35,36,36,77,96,97,89,137,135,134,126,200,193,334,304,328,325,577,551,572,556,511,414,740,586,542,470,647,625,607,589,721,713,664,567]} 1. d4 {[%emt 0:00:03]} d5 {[%emt 0:00:01]} 2. c4 {[%emt 0:00:03]} e6 {[%emt 0:12:08]} 3. Nc3 {[%emt 0:00:04]} Nf6 {[%emt 0:00:00]} 4. cxd5 {[%emt 0:00:05]} exd5 {[%emt 0:00:00]} 5. Bg5 {[%emt 0:00:02][%cal Bc1g5,Bg5h4,Bh4g3][%mdl 32]} c6 {[%emt 0:00:00]} 6. e3 {[%emt 0:00:04]} Be7 {[%emt 0:00:00]} 7. Qc2 {[%emt 0:00:05]} O-O {[%emt 0:00:00]} 8. Bd3 {[%emt 0:00:04]} h6 {[%emt 0:00:00]} 9. Bh4 {[%emt 0:00:04]} Be6 {[%emt 0:00:00]} 10. Nf3 {[%emt 0:00:25]} Nbd7 {[%emt 0:00:00] D36: Queen's Gambit Declined: Exchange Variation: Main line (5 Bg5 c6 6 Qc2).} 11. O-O {[%emt 0:00:23]} Qc7 {[%emt 0:00:00]} 12. Bg3 {[%emt 0:00:30] [#]} Qb6 $146 {[%emt 0:00:00] White is slightly better.} ({Predecessor:} 12... Qd8 13. h3 Re8 14. a3 Nf8 15. Ne5 Bd6 16. f4 Bc8 17. Bh4 Be7 18. Qf2 Nh5 19. Bxe7 Qxe7 {1-0 (39) Merino Araguas,J (1813)-Ballesteros Galvez,D (1789) Madrid 2014}) 13. Na4 {[%emt 0:00:19]} Qd8 {[%emt 0:00:00]} 14. h3 {[%emt 0:00:08]} Nb6 {[%emt 0:00:00]} 15. Nc5 {[%emt 0:00:04]} Bxc5 {[%emt 0:00:00]} 16. dxc5 {[%emt 0:00:07]} ({Much less strong is} 16. Qxc5 Ne4 17. Bxe4 dxe4 $14) 16... Nc8 {[%emt 0:00:00]} (16... Nbd7 $142) 17. Nd4 {[%emt 0:00:08]} Bd7 {[%emt 0:00:00]} 18. b4 {[%emt 0:00:11] White is much more active.} b6 {[%emt 0:00:00]} (18... Ne7 $16 {might work better.} 19. Bf4 Ng6) 19. Rfc1 {[%emt 0:00:16]} b5 {[%emt 0:00:00]} (19... Ne7 $142 20. Rab1 Re8) 20. a4 $18 {[%emt 0:00:07]} bxa4 {[%emt 0:00:00]} 21. Qxa4 {[%emt 0:00:06]} ({Don't do} 21. Rxa4 Ne4 22. Bxe4 dxe4 23. Qxe4 Qf6) 21... Re8 $2 {[%emt 0:00:00] [#]} (21... Ne7 22. b5 cxb5) 22. Nxc6 {[%emt 0:00:15]} Bxc6 {[%emt 0:00:00]} 23. Qxc6 {[%emt 0:00:05]} Ne7 {[%emt 0:00:00]} 24. Qa4 {[%emt 0:00:12]} Nd7 {[%emt 0:00:00]} (24... Ne4 $142 25. Bxe4 dxe4) 25. c6 {[%emt 0:00:27] White is clearly winning.} Nb6 {[%emt 0:00:00]} 26. Qa6 {[%emt 0:00:13]} d4 {[%emt 0:00:00]} 27. e4 {[%emt 0:00:10]} Qc8 {[%emt 0:00:00]} 28. c7 {[%emt 0:00:13]} Qxa6 {[%emt 0:00:00]} 29. Bxa6 {[%emt 0:00:07]} f5 {[%emt 0:00:00]} 30. Bb7 {[%emt 0:00:20] Black did not feel at home in the position after the opening.  Weighted Error Value: White=0.26 (precise) /Black=0.48} 1-0

[Event "5th Vera Menchik Memorial 2022"]
[Site "Prag"]
[Date "2022.06.05"]
[Round "5.12"]
[White "Rousek, Jan"]
[Black "Pachmann, Ales"]
[Result "1-0"]
[ECO "A04"]
[WhiteElo "2040"]
[BlackElo "2288"]
[Annotator "TA"]
[PlyCount "121"]
[EventDate "2022.06.05"]
[EventType "tourn"]
[EventCountry "CZE"]
[SourceTitle "playchess.com"]
[Source "ChessBase"]
[SourceQuality "1"]
[TimeControl "720+3"]

{[%evp 17,121,29,32,13,37,35,37,36,46,-104,47,-87,-100,-94,-93,-104,-68,-72,0,0,0,0,0,0,0,0,0,0,41,47,34,27,24,27,26,45,100,100,120,116,146,146,129,145,146,146,149,139,139,98,98,98,98,72,72,65,213,30,396,334,883,327,504,316,1343,1317,1618,1537,2975,2195,1518,1125,29965,29967,29960,29966,29969,29967,29975,29976,29979,29979,29979,29980,29983,29984,29984,29985,29985,29986,29986,29987,29987,29988,29988,29989,29989,29990,29990,29991,29991,29992,29992,29993,29993,29994]} 1. d4 {[%emt 0:00:03]} Nf6 {[%emt 0:00:02]} 2. c4 {[%emt 0:00:02]} g6 {[%emt 0:00:02]} 3. g3 {[%emt 0:00:02]} Bg7 {[%emt 0:00:02]} 4. Bg2 {[%emt 0:00:02]} O-O {[%emt 0:00:02]} 5. Nf3 {[%emt 0:00:02]} c5 {[%emt 0:00:07]} 6. O-O {[%emt 0:00:08]} cxd4 {[%emt 0:00:09]} 7. Nxd4 {[%emt 0:00:03]} Nc6 {[%emt 0:00:02]} 8. Nxc6 {[%emt 0:00:29]} bxc6 {[%emt 0:00:05]} 9. Nc3 {[%emt 0:00:24]} Rb8 {[%emt 0:00:48][%cal Od7d5]} 10. Qc2 {[%emt 0:00:54] A04: Unusual lines after 1 Nf3 and King's Indian Attack.} Qa5 {[%emt 0:00:42]} 11. Bf4 {[%emt 0:02:10]} d6 {[%emt 0:01:59]} 12. Rac1 {[%emt 0:01:52] White is slightly better.} Qh5 {[%emt 0:01:54]} 13. e4 {[%emt 0:05:09] [#]} (13. Bxc6 $14 g5 14. Bf3) 13... e5 $146 {[%emt 0:00:54]} ({Much weaker is} 13... Ng4 $6 14. h3 Ne5 15. g4 $11) ({Black should play} 13... g5 $17 14. Bd2 Ng4) ({Predecessor:} 13... Bh3 14. Bxh3 Qxh3 15. f3 Qh5 16. b3 Nd7 17. Qe2 Qa5 18. Bd2 Qc7 19. Na4 Nb6 {½-½ (59) Koop,T (2103)-Grewenig,J (2045) Oberhof 2012}) 14. Be3 {[%emt 0:00:07] [#]} (14. Bd2 $14 {is the one way to stay ahead.}) 14... Ng4 $1 $17 {[%emt 0:00:21][%csl Gg4][%cal Rh5h2]} 15. h4 {[%emt 0:00:15]} Nxe3 {[%emt 0:00:06]} 16. fxe3 {[%emt 0:00:02]} g5 {[%emt 0:01:23]} 17. Bf3 {[%emt 0:00:19]} g4 {[%emt 0:00:29]} (17... Qg6 $17 {...gxh4 is the strong threat.} 18. h5 Qe6) 18. Bg2 $11 {[%emt 0:00:06]} Bh6 {[%emt 0:00:19]} 19. Qe2 {[%emt 0:00:10]} Be6 {[%emt 0:00:33]} 20. b3 {[%emt 0:00:01]} Qg6 {[%emt 0:00:52]} 21. Rcd1 {[%emt 0:00:05]} Rbd8 {[%emt 0:00:08]} 22. Qf2 {[%emt 0:00:14]} f5 {[%emt 0:00:21]} 23. exf5 {[%emt 0:00:03]} Bxf5 {[%emt 0:00:30]} 24. Qe2 {[%emt 0:00:08] Against Bd3} e4 $1 {[%emt 0:00:19]} 25. Qd2 {[%emt 0:00:16]} Bg7 {[%emt 0:00:13]} 26. Ne2 {[%emt 0:00:02][%cal Bc3e2,Be2f4,Bf4d5][%mdl 32]} d5 {[%emt 0:00:20]} (26... Be5 $14) 27. Nf4 $16 {[%emt 0:00:03]} Qd6 {[%emt 0:00:18]} 28. cxd5 {[%emt 0:00:02]} cxd5 {[%emt 0:00:02]} 29. Qxd5+ {[%emt 0:00:03]} Qxd5 {[%emt 0:00:00]} 30. Rxd5 {[%emt 0:00:02]} Rxd5 {[%emt 0:00:08]} 31. Nxd5 {[%emt 0:00:01]} Bg6 {[%emt 0:00:16]} 32. Ne7+ {[%emt 0:00:04]} Kh8 {[%emt 0:00:00]} 33. Rxf8+ {[%emt 0:00:02]} Bxf8 {[%emt 0:00:01]} 34. Nxg6+ {[%emt 0:00:02]} hxg6 {[%emt 0:00:01]} 35. Bxe4 {[%emt 0:00:01][%mdl 4096] Endgame KB-KB} Kg7 {[%emt 0:00:01]} 36. Kf2 {[%emt 0:00:23]} Kf6 ({Black should try} 36... Kh6 $14) 37. Ke2 $2 {[%emt 0:00:00]} (37. Bb7 $18) 37... Ke5 $2 {[%emt 0:00:01][%mdl 8192]} (37... Bd6 $11 {and Black has nothing to worry.}) 38. Bxg6 $18 {[%emt 0:00:00] [#] aiming for Bh5.} Bc5 $2 {[%emt 0:00:02]} (38... Bd6 39. Be8 Ke4) 39. e4 $2 {[%emt 0:00:00]} (39. Bh5 Kf5 40. e4+ Kxe4 41. Bxg4) 39... Be7 {[%emt 0:00:03]} (39... Kd4 $142 40. Bf5 a5 41. Bxg4 Kxe4) 40. Bf5 {[%emt 0:00:00]} Bc5 $2 {[%emt 0:00:04]} (40... Kd4 41. Bxg4 Kxe4) 41. Kd3 {[%emt 0:00:00]} Bf2 {[%emt 0:00:01]} 42. Bxg4 {[%emt 0:00:00]} Bxg3 {[%emt 0:00:02]} 43. h5 {[%emt 0:00:00] Black must now prevent h6.} Bf4 {[%emt 0:00:01]} 44. Bf5 {[%emt 0:00:00]} a5 {[%emt 0:00:01]} 45. Kc4 {[%emt 0:00:00] White mates.} Bd2 {[%emt 0:00:01]} 46. a3 {[%emt 0:00:07][%cal Ba2a3,Ba3b4,Bb4b5,Bb5b6,Bb6b7][%mdl 32]} Bc1 {[%emt 0:00:02]} 47. b4 {[%emt 0:00:01]} axb4 {[%emt 0:00:02]} 48. axb4 {[%emt 0:00:02]} Be3 {[%emt 0:00:02]} 49. Kb5 {[%emt 0:00:02]} Kd6 {[%emt 0:00:02]} 50. Ka6 {[%emt 0:00:01]} Kc7 {[%emt 0:00:40]} 51. b5 Bf4 {[%emt 0:00:00]} 52. b6+ {[%emt 0:00:03]} Kb8 {[%emt 0:00:00]} 53. b7 {[%emt 0:00:09]} Be5 {[%emt 0:00:00]} 54. h6 {[%emt 0:00:01][%cal Bh5h6,Bh6h7][%mdl 32]} Bf6 {[%emt 0:00:00]} 55. h7 {[%emt 0:00:01]} Bg7 {[%emt 0:00:00]} 56. Kb6 {[%emt 0:00:06]} Bh8 {[%emt 0:00:00]} 57. Kc6 {[%emt 0:00:02]} Bg7 {[%emt 0:00:00]} 58. Bc8 {[%emt 0:00:01]} Bh8 {[%emt 0:00:00]} 59. Kd6 {[%emt 0:00:03]} Bg7 {[%emt 0:00:00]} 60. e5 {[%emt 0:00:01][%cal Be4e5,Be5e6][%mdl 32]} Bh8 {[%emt 0:00:00]} 61. e6 {[%emt 0:00:01] Weighted Error Value: White=0.53/Black=0.76} 1-0

[Event "5th Vera Menchik Memorial 2022"]
[Site "Prag"]
[Date "2022.06.05"]
[Round "5.13"]
[White "Vybiral, Zdenek"]
[Black "Svacina, Tobias"]
[Result "1-0"]
[ECO "D10"]
[WhiteElo "2167"]
[BlackElo "1872"]
[Annotator "TA"]
[PlyCount "45"]
[EventDate "2022.06.05"]
[EventType "tourn"]
[EventCountry "CZE"]
[SourceTitle "playchess.com"]
[Source "ChessBase"]
[SourceQuality "1"]
[TimeControl "720+3"]

{[%evp 9,45,16,37,13,100,80,99,91,96,98,208,187,174,185,236,214,263,228,324,293,687,689,687,675,679,687,671,659,758,776,990,875,911,871,29992,864,2552,577]} 1. d4 {[%emt 0:00:04]} d5 {[%emt 0:00:02]} 2. c4 {[%emt 0:00:01]} c6 {[%emt 0:00:02]} 3. cxd5 {[%emt 0:00:01]} cxd5 {[%emt 0:00:01]} 4. Bf4 {[%emt 0:00:02]} Nc6 {[%emt 0:00:11]} 5. e3 {[%emt 0:00:01]} Bf5 {[%emt 0:00:08]} 6. Nc3 {[%emt 0:00:10] D10: Slav Defence: 3 cxd5 (without early Nf3) and 3 Nc3.} (6. Qb3 $5 {[%cal Rb3b7]}) 6... a6 {[%emt 0:00:01] [#]} (6... e6 $11 {keeps the balance.}) 7. Qb3 $1 $16 {[%emt 0:00:27]} e6 {[%emt 0:00:49]} 8. Qxb7 {[%emt 0:00:37] White is better.} Na5 {[%emt 0:00:22]} 9. Qc7 {[%emt 0:00:28] [#] White is much more active.} Rc8 $146 {[%emt 0:00:34]} (9... Qxc7 $16 10. Bxc7 Bb4) ({Predecessor:} 9... Qxc7 10. Bxc7 Bb4 11. Kd2 Nf6 12. f3 Kd7 13. Bxa5 Bxa5 14. Bd3 Bxd3 15. Kxd3 Rab8 {1-0 (69) Kostic,F (2257)-Vukic,R (2343) Sombor 2010}) 10. Qxd8+ $18 {[%emt 0:00:07]} Kxd8 {[%emt 0:00:01]} 11. Bxa6 {[%emt 0:00:09]} Rc6 {[%emt 0:00:09]} (11... Ra8 $142) 12. Bb5 {[%emt 0:00:42]} Rb6 {[%emt 0:00:02]} 13. Nge2 {[%emt 0:00:24]} Nc4 {[%emt 0:00:54]} (13... Bb4 $142) 14. a4 {[%emt 0:03:00][%cal Ba2a4,Ba4a5,Ba5a6,Ba6a7][%mdl 32]} Nxb2 $2 {[%emt 0:00:45]} (14... Na5 15. O-O Nf6) 15. a5 {[%emt 0:00:05]} Rb7 {[%emt 0:00:11]} 16. a6 {[%emt 0:00:07]} Ra7 {[%emt 0:00:01]} 17. Bb8 {[%emt 0:00:07]} Ra8 {[%emt 0:00:02]} 18. a7 {[%emt 0:00:01]} Nd3+ {[%emt 0:00:07]} 19. Kd2 {[%emt 0:00:09] [#] Black must now prevent Bc6.} Nb4 {[%emt 0:00:12] Inhibits Bc6.} 20. Rhc1 {[%emt 0:00:17]} Ne7 {[%emt 0:00:17]} 21. Na2 {[%emt 0:01:03]} Nxa2 {[%emt 0:00:47]} 22. Rxa2 {[%emt 0:00:09]} (22. Bc7+ $142 Kc8 23. Ba5+ Bc2 24. Rxc2+ Nc3 25. Rxc3+ Nc6 26. Rxc6+ Kd7 27. Rc7+ Kd8 28. Rxf7+ Kc8 29. Ba6#) 22... e5 {[%emt 0:00:05]} 23. Bc7+ {[%emt 0:01:42] Black did not feel at home in the position after the opening.  Weighted Error Value: White=0.11 (very precise) /Black=1.25} 1-0

[Event "5th Vera Menchik Memorial 2022"]
[Site "Prag"]
[Date "2022.06.05"]
[Round "5.14"]
[White "Kucera, David"]
[Black "Kulovana, Eva"]
[Result "0-1"]
[ECO "D10"]
[WhiteElo "1782"]
[BlackElo "2173"]
[Annotator "TA"]
[PlyCount "96"]
[EventDate "2022.06.05"]
[EventType "tourn"]
[EventCountry "CZE"]
[SourceTitle "playchess.com"]
[Source "ChessBase"]
[SourceQuality "1"]
[TimeControl "720+3"]

{[%evp 9,96,0,0,0,0,-10,0,-17,20,12,16,-25,-24,-25,-36,-20,-17,-12,0,-2,-8,-89,-79,-95,-49,-41,-44,-33,33,59,220,222,215,201,122,-174,-150,-167,-133,-140,-80,-84,-89,-355,-356,-395,-398,-392,-387,-373,-193,-185,-180,-317,-168,-272,-176,-175,-171,-174,-174,-173,-173,-172,-124,-193,-152,-237,-239,-197,-182,-409,-409,-396,-372,-355,-343,-362,-379,-739,-784,-732,-676,-565,-541,-709,-584,-589,-529]} 1. d4 {[%emt 0:00:05]} d5 {[%emt 0:00:01]} 2. c4 {[%emt 0:00:02]} c6 {[%emt 0:00:02]} 3. g3 {[%emt 0:00:01]} Nf6 {[%emt 0:00:02]} 4. Bg2 {[%emt 0:00:02]} Bg4 {[%emt 0:00:26]} 5. cxd5 {[%emt 0:00:07]} cxd5 {[%emt 0:00:03]} 6. Nf3 {[%emt 0:00:02] D10: Slav Defence: 3 cxd5 (without early Nf3) and 3 Nc3.} Nc6 {[%emt 0:00:08]} 7. O-O {[%emt 0:00:02]} e6 {[%emt 0:00:07]} 8. Nc3 {[%emt 0:00:08] The position is equal.} a6 {[%emt 0:01:06]} 9. Bf4 {[%emt 0:00:25]} Bd6 {[%emt 0:00:07] [#]} 10. Rc1 $146 {[%emt 0:00:21]} ({Predecessor:} 10. Bxd6 Qxd6 11. e3 O-O 12. Ne2 Rfc8 13. h3 Bf5 14. a3 Na5 15. Ne5 Bc2 16. Qe1 {½-½ (27) Gebhardt,C (1913)-Hafensteiner,T (1822) Forchheim 2016}) 10... Bxf4 {[%emt 0:00:24]} 11. gxf4 {[%emt 0:00:02]} Bxf3 {[%emt 0:00:11]} 12. Bxf3 {[%emt 0:00:03]} Qd6 {[%emt 0:00:05]} 13. e3 {[%emt 0:00:02]} h6 {[%emt 0:00:09]} 14. Qd3 {[%emt 0:00:33]} Ne7 {[%emt 0:00:34]} 15. e4 {[%emt 0:00:37]} (15. Rc2 $11) 15... Qxf4 $17 {[%emt 0:00:52]} 16. exd5 {[%emt 0:00:12]} Nfxd5 {[%emt 0:00:26]} ({Of course not} 16... Nexd5 $6 17. Nxd5 exd5 18. Rfe1+ Kf8 19. Qe3 Qxe3 20. Rxe3 $11) (16... exd5 $17 17. Rce1 Qd6) 17. Nxd5 $15 {[%emt 0:00:01]} Qg5+ {[%emt 0:01:04]} 18. Kh1 {[%emt 0:00:22]} Nxd5 {[%emt 0:00:02]} (18... exd5 $15 19. Rc7 O-O) 19. Rg1 $14 {[%emt 0:00:28]} Qf6 {[%emt 0:00:53]} (19... Qd8 $14) 20. Bxd5 $18 {[%emt 0:01:43]} exd5 {[%emt 0:00:01] [#]} 21. Qa3 $1 {[%emt 0:00:01]} Kd7 {[%emt 0:01:50] [#]} 22. Qa5 $2 {[%emt 0:01:11][%mdl 8192]} (22. Qh3+ $1 $16 {and life is bright.} Qe6 23. Qb3 (23. Qc3 Rhc8 $15)) 22... Qf3+ $19 {[%emt 0:00:31]} 23. Rg2 {[%emt 0:06:42] Intending Qc7+ and mate.} Rhc8 {[%emt 0:00:02] Prevents Qc7+.} 24. Re1 {[%emt 0:00:00]} Rc6 {[%emt 0:00:20]} (24... Re8 $142 {[%cal Ob7b6]} 25. Rf1 (25. Rc1 $2 Rac8 $17) 25... Rac8) 25. Qb4 $17 {[%emt 0:00:00]} Re8 $40 {[%emt 0:00:47][%mdl 128] White must now prevent ...Rxe1+. Black wants a kill.} 26. Rxe8 {[%emt 0:00:00][%mdl 8192]} (26. Qxb7+ $17 Rc7 27. Qxc7+ Kxc7 28. Rxe8) 26... Kxe8 {[%emt 0:00:02][%mdl 4096] Endgame KQR-KQR. Really sharp!} 27. Qe1+ {[%emt 0:00:00]} Re6 {[%emt 0:00:10][%cal Re6e1]} 28. Qc1 {[%emt 0:00:00]} Kd7 {[%emt 0:00:14]} 29. Kg1 {[%emt 0:00:00]} g5 {[%emt 0:00:28]} (29... Re2 $142 {Hoping for ...g5.} 30. h4 Qe4) 30. Rg3 $19 {[%emt 0:00:00]} Qe2 {[%emt 0:00:05]} 31. Qc3 {[%emt 0:00:00]} (31. h3 $142) 31... Qe1+ {[%emt 0:00:04]} (31... Rf6 $142 32. Qe3 Qxb2) 32. Kg2 {[%emt 0:00:00]} (32. Qxe1 {only move.} Rxe1+ 33. Kg2) 32... Qxc3 {[%emt 0:00:03]} 33. Rxc3 {[%emt 0:00:30] KR-KR} Re2 {[%emt 0:00:05]} 34. Rb3 {[%emt 0:00:00]} b5 {[%emt 0:00:09]} 35. Kf3 {[%emt 0:00:00]} Re4 {[%emt 0:00:08]} 36. Ra3 {[%emt 0:00:00]} Re6 {[%emt 0:00:13]} (36... Rxd4 $19 {aiming for ...Ra4.} 37. Rxa6 Rf4+ 38. Kg2 Rg4+ 39. Kf3 Rf4+ 40. Kg2 h5) 37. Rc3 {[%emt 0:00:00]} (37. Kg3 $17) 37... h5 {[%emt 0:00:47]} 38. Rc5 {[%emt 0:00:00]} (38. Ra3 $17 {was called for.}) 38... Kd6 {[%emt 0:00:06]} 39. Rc8 {[%emt 0:00:00]} Rf6+ {[%emt 0:00:21]} 40. Kg3 $2 {[%emt 0:00:08]} (40. Ke3) 40... Rf4 {[%emt 0:00:03]} 41. Ra8 {[%emt 0:00:01]} Rxd4 {[%emt 0:00:09]} 42. Rxa6+ {[%emt 0:00:01]} Ke5 {[%emt 0:00:03]} 43. Rb6 {[%emt 0:00:13]} b4 {[%emt 0:00:09]} 44. a4 $2 {[%emt 0:00:04]} (44. Kf3 Rf4+ 45. Kg2) 44... bxa3 {[%emt 0:00:02] Black is clearly winning.} 45. bxa3 {[%emt 0:00:01]} Ra4 {[%emt 0:00:03]} 46. Rb3 {[%emt 0:00:04]} h4+ {[%emt 0:00:08]} 47. Kf3 {[%emt 0:00:03]} g4+ {[%emt 0:00:07]} 48. Ke3 {[%emt 0:00:03]} f5 {[%emt 0:00:05] Weighted Error Value: White=0.68/Black=0.29 (precise)} 0-1

[Event "5th Vera Menchik Memorial 2022"]
[Site "Prag"]
[Date "2022.06.05"]
[Round "5.15"]
[White "Vrana, Frantisek"]
[Black "Mladek, Jiri"]
[Result "1-0"]
[ECO "A25"]
[WhiteElo "2213"]
[BlackElo "1519"]
[Annotator "TA"]
[PlyCount "53"]
[EventDate "2022.06.05"]
[EventType "tourn"]
[EventCountry "CZE"]
[SourceTitle "playchess.com"]
[Source "ChessBase"]
[SourceQuality "1"]
[TimeControl "720+3"]

{[%evp 13,53,18,58,40,46,59,89,30,92,81,164,158,186,128,174,165,275,280,270,270,293,275,274,240,347,322,388,399,388,391,356,335,566,564,1331,1213,29992,29993,29993,29994,29996,29996]} 1. c4 {[%emt 0:00:03]} e5 {[%emt 0:00:04]} 2. Nc3 {[%emt 0:00:09]} Nf6 {[%emt 0:00:04]} 3. g3 {[%emt 0:00:12]} Bc5 {[%emt 0:00:05]} 4. Bg2 {[%emt 0:00:02]} O-O {[%emt 0:00:20]} 5. e3 {[%emt 0:00:03]} Nc6 {[%emt 0:00:08]} 6. Nge2 {[%emt 0:00:05]} d6 {[%emt 0:00:22]} 7. O-O {[%emt 0:00:06]} Bg4 {[%emt 0:00:18]} 8. h3 {[%emt 0:00:09] A25: English Opening vs King's Indian with ...Nc6 but without early d3.} Bf5 {[%emt 0:00:22]} 9. d4 {[%emt 0:00:20] [#] Strongly threatening g4.} exd4 {[%emt 0:00:29]} 10. Nxd4 {[%emt 0:00:08]} (10. exd4 $16 Bb6 11. g4) 10... Bxd4 {[%emt 0:00:44]} (10... Bd7 $11) 11. exd4 $16 {[%emt 0:00:03] [#]} Qd7 $146 {[%emt 0:00:50]} (11... h6 $16) ({Predecessor:} 11... Re8 12. Be3 Ne4 13. Qb3 Rb8 14. Kh2 Nxc3 15. Qxc3 Be4 16. b4 Bxg2 17. Kxg2 Qf6 {1-0 (47) Hirschinger,T (1960)-Sommer,J (1794) Playchess.com INT 2020}) 12. g4 {[%emt 0:00:45]} Bg6 {[%emt 0:00:30]} 13. d5 {[%emt 0:00:13]} (13. f4 $18) 13... Ne5 {[%emt 0:00:33]} (13... Nb8 $16 14. f4 h6) 14. f4 $18 {[%emt 0:00:15]} Nxc4 {[%emt 0:02:35]} (14... Nexg4 {was necessary.} 15. hxg4 Nxg4) 15. f5 {[%emt 0:00:08]} Rae8 {[%emt 0:00:38]} 16. Qd4 {[%emt 0:00:29]} Ne5 {[%emt 0:00:25]} 17. fxg6 {[%emt 0:00:27]} fxg6 {[%emt 0:00:07]} 18. Bg5 {[%emt 0:00:15]} (18. Qxa7 $6 Nfxg4 19. Bg5 (19. hxg4 Rxf1+ 20. Kxf1 Qxg4 $11) 19... h6 $16) 18... h5 {[%emt 0:00:32]} (18... h6 {was called for.}) 19. Bxf6 {[%emt 0:00:14]} ({Weaker is} 19. Qxa7 hxg4 20. Qa4 (20. Qxb7 $2 gxh3 21. Qb4 hxg2 $19) 20... Qxa4 21. Nxa4 gxh3 $16) 19... Rxf6 {[%emt 0:00:12]} 20. Rxf6 {[%emt 0:00:14]} gxf6 {[%emt 0:00:02]} 21. gxh5 {[%emt 0:00:03]} gxh5 {[%emt 0:00:08]} 22. Ne4 {[%emt 0:00:08]} Kf7 {[%emt 0:00:37] [#]} (22... Qg7 {might work better.} 23. Qf2 (23. Qxa7 f5 $11) 23... Rf8) 23. Rf1 {[%emt 0:00:10][%cal Ba1f1,Bf1f3,Bf3h3][%mdl 32]} Rg8 {[%emt 0:00:51]} 24. Nxf6 {[%emt 0:00:20]} Qxh3 {[%emt 0:00:10]} 25. Nxg8+ {[%emt 0:00:10] White mates.} Nf3+ {[%emt 0:00:30]} 26. Rxf3+ {[%emt 0:00:09]} Kxg8 {[%emt 0:00:05]} 27. Rxh3 {[%emt 0:00:08] White took control after the opening.  Weighted Error Value: White=0.11 (very precise) /Black=1.00} 1-0